[Event "RUS Cup Final Men 2019"]
[Site "Khanty-Mansiysk"]
[Date "2019.12.08"]
[Round "2.2"]
[White "Goganov, Aleksey"]
[Black "Sjugirov, Sanan"]
[Result "0-1"]
[ECO "D37"]
[WhiteElo "2581"]
[BlackElo "2665"]
[Annotator "ChessBase"]
[PlyCount "78"]
[EventDate "2019.12.05"]
[EventType "k.o."]
[EventCountry "RUS"]
[SourceTitle "playchess.com"]
[Source "ChessBase"]
[SourceQuality "1"]
[TimeControl "5400+30"]

1. d4 {[%emt 0:00:00]} Nf6 {[%emt 0:00:00]} 2. c4 {[%emt 0:00:00]} e6 {[%emt 0:00:02]} 3. Nf3 {[%emt 0:00:00]} d5 {[%emt 0:00:31]} 4. Nc3 {[%emt 0:00:00]} Nbd7 {[%emt 0:00:59]} 5. Bf4 {[%emt 0:00:46]} Bb4 {[%emt 0:05:14]} 6. cxd5 {[%emt 0:08:30]} exd5 {[%emt 0:00:52]} 7. e3 {[%emt 0:00:04]} Ne4 {[%emt 0:00:11]} 8. Qb3 {[%emt 0:19:03]} c5 {[%emt 0:06:14]} 9. Rc1 {[%emt 0:02:04]} Qa5 {[%emt 0:19:26]} 10. a3 {[%emt 0:05:21]} Bxc3+ {[%emt 0:01:00]} 11. bxc3 {[%emt 0:00:10]} O-O {[%emt 0:12:01]} 12. Be2 {[%emt 0:10:41]} Nb6 {[%emt 0:05:52]} 13. dxc5 {[%emt 0:02:37]} Qxc5 {[%emt 0:00:42]} 14. O-O {[%emt 0:03:16]} Be6 {[%emt 0:01:33]} 15. Qb4 {[%emt 0:08:04]} Rfc8 {[%emt 0:04:12]} 16. Be5 {[%emt 0:00:33]} Qxb4 {[%emt 0:15:31]} 17. cxb4 {[%emt 0:00:31]} Nc4 {[%emt 0:00:33]} 18. Bxc4 {[%emt 0:00:12]} dxc4 {[%emt 0:00:20]} 19. Nd4 {[%emt 0:00:06]} Bd7 {[%emt 0:02:37]} 20. f3 {[%emt 0:01:21]} f6 {[%emt 0:01:39]} 21. fxe4 {[%emt 0:04:32]} fxe5 {[%emt 0:00:05]} 22. Nf5 {[%emt 0:00:03]} Bxf5 {[%emt 0:00:41]} 23. Rxf5 {[%emt 0:00:54]} a5 {[%emt 0:00:11]} 24. Rxe5 {[%emt 0:01:04]} axb4 {[%emt 0:00:05]} 25. axb4 {[%emt 0:00:03]} Ra2 {[%emt 0:02:20]} 26. Rc5 {[%emt 0:07:17]} Rd8 {[%emt 0:00:11]} 27. R5xc4 {[%emt 0:12:21]} Rdd2 {[%emt 0:00:17]} 28. Rc8+ {[%emt 0:00:51]} Kf7 {[%emt 0:00:04]} 29. R8c7+ {[%emt 0:00:03]} Kg6 {[%emt 0:01:11]} 30. Rxb7 {[%emt 0:00:32]} Rxg2+ {[%emt 0:00:14]} 31. Kf1 {[%emt 0:00:11]} Rxh2 {[%emt 0:01:35]} 32. Kg1 {[%emt 0:00:14]} Rag2+ {[%emt 0:00:53]} 33. Kf1 {[%emt 0:00:03]} Rb2 {[%emt 0:00:12]} 34. Kg1 {[%emt 0:00:16]} h5 {[%emt 0:02:00]} 35. Rc6+ {[%emt 0:02:26]} Kh7 {[%emt 0:00:05]} 36. e5 {[%emt 0:02:15]} Rhg2+ {[%emt 0:02:45]} 37. Kf1 {[%emt 0:01:14]} Rgd2 {[%emt 0:00:17]} 38. Rc1 {[%emt 0:00:36]} h4 {[%emt 0:00:20]} 39. e6 {[%emt 0:01:12]} Rh2 {[%emt 0:00:28]} 0-1

[Event "RUS Cup Final Men 2019"]
[Site "Khanty-Mansiysk"]
[Date "2019.12.08"]
[Round "2.2"]
[White "Pogosyan, Stefan"]
[Black "Volkov, Sergey"]
[Result "1-0"]
[ECO "D15"]
[WhiteElo "2459"]
[BlackElo "2578"]
[Annotator "ChessBase"]
[PlyCount "117"]
[EventDate "2019.12.05"]
[EventType "k.o."]
[EventCountry "RUS"]
[SourceTitle "playchess.com"]
[Source "ChessBase"]
[SourceQuality "1"]
[TimeControl "5400+30"]

1. d4 {[%emt 0:00:00]} d5 {[%emt 0:00:00]} 2. c4 {[%emt 0:00:00]} c6 {[%emt 0:00:00]} 3. Nc3 {[%emt 0:00:00]} Nf6 {[%emt 0:00:06]} 4. Nf3 {[%emt 0:00:04]} a6 {[%emt 0:00:10]} 5. g3 {[%emt 0:00:07]} Bf5 {[%emt 0:01:20]} 6. Bg2 {[%emt 0:00:29]} e6 {[%emt 0:00:06]} 7. O-O {[%emt 0:00:11]} Nbd7 {[%emt 0:01:19]} 8. Nh4 {[%emt 0:09:46]} Bg4 {[%emt 0:01:29]} 9. f3 {[%emt 0:13:13]} Bh5 {[%emt 0:00:23]} 10. g4 {[%emt 0:00:06]} Ng8 {[%emt 0:05:48]} 11. gxh5 {[%emt 0:13:13]} Qxh4 {[%emt 0:00:17]} 12. cxd5 {[%emt 0:00:18]} cxd5 {[%emt 0:04:35]} 13. e4 {[%emt 0:01:53]} Ngf6 {[%emt 0:03:29]} 14. exd5 {[%emt 0:06:23]} Nxd5 {[%emt 0:01:24]} 15. Nxd5 {[%emt 0:01:32]} exd5 {[%emt 0:00:16]} 16. Qe1+ {[%emt 0:11:41]} Be7 {[%emt 0:00:44]} 17. Qxh4 {[%emt 0:02:14]} Bxh4 {[%emt 0:00:16]} 18. Bf4 {[%emt 0:03:56]} Ke7 {[%emt 0:03:25]} 19. Rac1 {[%emt 0:04:51]} Rhc8 {[%emt 0:00:58]} 20. Bc7 {[%emt 0:04:53]} Nf8 {[%emt 0:02:19]} 21. f4 {[%emt 0:06:03]} Ne6 {[%emt 0:02:10]} 22. Bb6 {[%emt 0:00:04]} Rxc1 {[%emt 0:01:12]} 23. Rxc1 {[%emt 0:00:22]} Nxf4 {[%emt 0:00:07]} 24. Rc7+ {[%emt 0:02:17]} Kd6 {[%emt 0:27:12]} 25. Rxf7 {[%emt 0:00:24]} Nxg2 {[%emt 0:00:10]} 26. Kxg2 {[%emt 0:00:17]} Kc6 {[%emt 0:00:07]} 27. Bc5 {[%emt 0:08:52]} Rg8 {[%emt 0:09:14]} 28. Kh3 {[%emt 0:01:56]} Bg5 {[%emt 0:01:04]} 29. Bf8 {[%emt 0:00:16]} g6 {[%emt 0:05:55]} 30. h6 {[%emt 0:00:37]} Be3 {[%emt 0:00:34]} 31. Bg7 {[%emt 0:00:35]} Re8 {[%emt 0:00:43]} 32. Kg3 {[%emt 0:06:07]} b5 {[%emt 0:02:21]} 33. b3 {[%emt 0:00:38]} b4 {[%emt 0:00:34]} 34. h4 {[%emt 0:01:05]} a5 {[%emt 0:00:10]} 35. Ra7 {[%emt 0:02:18]} Kb6 {[%emt 0:00:31]} 36. Rd7 {[%emt 0:00:07]} Kc6 {[%emt 0:00:05]} 37. Rf7 {[%emt 0:00:05]} Kb6 {[%emt 0:00:41]} 38. Be5 {[%emt 0:00:54]} Bxh6 {[%emt 0:00:08]} 39. Rxh7 {[%emt 0:00:02]} Bd2 {[%emt 0:02:29]} 40. Rd7 {[%emt 0:00:12]} Be1+ {[%emt 0:00:54]} 41. Kg4 {[%emt 0:00:19]} Rc8 {[%emt 0:00:20]} 42. Rd6+ {[%emt 0:00:48]} Kb7 {[%emt 0:00:04]} 43. Rxg6 {[%emt 0:01:30]} Rc2 {[%emt 0:00:24]} 44. h5 {[%emt 0:00:08]} Bd2 {[%emt 0:00:29]} 45. h6 {[%emt 0:01:05]} Bxh6 {[%emt 0:00:02]} 46. Rxh6 {[%emt 0:00:05]} Rxa2 {[%emt 0:00:02]} 47. Kf5 {[%emt 0:00:49]} Ra3 {[%emt 0:00:07]} 48. Ke6 {[%emt 0:00:40]} Rxb3 {[%emt 0:01:13]} 49. Kxd5 {[%emt 0:00:22]} Rc3 {[%emt 0:00:16]} 50. Bd6 {[%emt 0:00:34]} b3 {[%emt 0:00:21]} 51. Bc5 {[%emt 0:00:16]} a4 {[%emt 0:00:24]} 52. Rb6+ {[%emt 0:00:47]} Kc7 {[%emt 0:00:16]} 53. Rb5 {[%emt 0:00:21]} Rc2 {[%emt 0:01:02]} 54. Ba3 {[%emt 0:00:26]} Ra2 {[%emt 0:00:27]} 55. Bd6+ {[%emt 0:00:47]} Kd7 {[%emt 0:00:29]} 56. Rb4 {[%emt 0:00:29]} Kc8 {[%emt 0:00:21]} 57. Ke6 {[%emt 0:00:23]} Re2+ {[%emt 0:00:17]} 58. Be5 {[%emt 0:00:05]} b2 {[%emt 0:00:39]} 59. Rb8# {[%emt 0:00:04]} 1-0

[Event "RUS Cup Final Men 2019"]
[Site "Khanty-Mansiysk"]
[Date "2019.12.08"]
[Round "2.3"]
[White "Kokarev, Dmitry"]
[Black "Chigaev, Maksim"]
[Result "0-1"]
[ECO "C88"]
[WhiteElo "2606"]
[BlackElo "2631"]
[Annotator "ChessBase"]
[PlyCount "126"]
[EventDate "2019.12.05"]
[EventType "k.o."]
[EventCountry "RUS"]
[SourceTitle "playchess.com"]
[Source "ChessBase"]
[SourceQuality "1"]
[TimeControl "5400+30"]

1. e4 {[%emt 1:15:14]} e5 {[%emt 1:15:11]} 2. Nf3 {[%emt 0:00:22]} Nc6 {[%emt 0:00:22]} 3. Bb5 {[%emt 0:00:23]} a6 {[%emt 0:00:21]} 4. Ba4 {[%emt 0:00:22]} Nf6 {[%emt 0:00:22]} 5. O-O {[%emt 0:00:24]} Be7 {[%emt 0:00:22]} 6. Re1 {[%emt 0:00:23]} b5 {[%emt 0:00:21]} 7. Bb3 {[%emt 0:00:23]} d6 {[%emt 0:00:22]} 8. a4 {[%emt 0:00:23]} Bg4 {[%emt 0:00:22]} 9. c3 {[%emt 0:00:23]} O-O {[%emt 0:00:23]} 10. h3 {[%emt 0:00:23]} Bh5 {[%emt 0:00:21]} 11. d3 {[%emt 0:00:26]} Na5 {[%emt 0:00:22]} 12. Ba2 {[%emt 0:00:23]} b4 {[%emt 0:00:22]} 13. cxb4 {[%emt 0:00:27]} Nc6 {[%emt 0:00:22]} 14. Bd2 {[%emt 0:00:26]} Bxf3 {[%emt 0:00:45]} 15. Qxf3 {[%emt 0:00:31]} Rb8 {[%emt 0:00:21]} 16. b5 {[%emt 0:00:25]} axb5 {[%emt 0:00:26]} 17. axb5 {[%emt 0:00:57]} Nd4 {[%emt 0:01:08]} 18. Qd1 {[%emt 0:00:23]} Rxb5 {[%emt 0:00:32]} 19. Bc3 {[%emt 0:00:22]} Rb8 {[%emt 0:00:29]} 20. Nd2 {[%emt 0:00:26]} Nb5 {[%emt 0:00:22]} 21. Ba5 {[%emt 0:00:44]} Qd7 {[%emt 0:02:12]} 22. Nc4 {[%emt 0:00:27]} Bd8 {[%emt 0:01:57]} 23. Bd2 {[%emt 0:00:56]} c6 {[%emt 0:00:38]} 24. Bb3 {[%emt 0:05:15]} Bb6 {[%emt 0:01:01]} 25. Bg5 {[%emt 0:00:55]} Kh8 {[%emt 0:01:50]} 26. Ra6 {[%emt 0:03:20]} Bc5 {[%emt 0:00:22]} 27. Bxf6 {[%emt 0:02:17]} gxf6 {[%emt 0:00:22]} 28. Qf3 {[%emt 0:00:21]} Qe7 {[%emt 0:00:24]} 29. Ba4 {[%emt 0:01:10]} Nd4 {[%emt 0:00:22]} 30. Qh5 {[%emt 0:00:22]} Rg8 {[%emt 0:00:52]} 31. Bxc6 {[%emt 0:01:10]} Rg5 {[%emt 0:00:48]} 32. Qd1 {[%emt 0:00:21]} Nxc6 {[%emt 0:02:38]} 33. Rxc6 {[%emt 0:00:23]} Qd7 {[%emt 0:00:21]} 34. Rxc5 {[%emt 0:00:31]} Qxh3 {[%emt 0:01:16]} 35. g3 {[%emt 0:00:35]} Rxg3+ {[%emt 0:01:36]} 36. fxg3 {[%emt 0:00:22]} Qxg3+ {[%emt 0:00:21]} 37. Kf1 {[%emt 0:00:22]} Rg8 {[%emt 0:01:03]} 38. Qd2 {[%emt 0:01:43]} Qh3+ {[%emt 0:01:13]} 39. Ke2 {[%emt 0:00:25]} Rg2+ {[%emt 0:01:40]} 40. Kd1 {[%emt 0:00:21]} Rxd2+ {[%emt 0:00:22]} 41. Kxd2 {[%emt 0:00:22]} dxc5 {[%emt 0:00:21]} 42. Ne3 {[%emt 0:00:23]} h5 {[%emt 0:01:23]} 43. Rf1 {[%emt 0:00:24]} Qh2+ {[%emt 0:00:29]} 44. Ke1 {[%emt 0:00:30]} h4 {[%emt 0:01:40]} 45. Rxf6 {[%emt 0:03:17]} Qg3+ {[%emt 0:01:46]} 46. Ke2 {[%emt 0:00:23]} h3 {[%emt 0:00:39]} 47. Nf1 {[%emt 0:00:58]} Qg4+ {[%emt 0:00:36]} 48. Ke1 {[%emt 0:00:40]} c4 {[%emt 0:00:33]} 49. dxc4 {[%emt 0:00:24]} Qxe4+ {[%emt 0:00:28]} 50. Kd1 {[%emt 0:00:28]} Qxc4 {[%emt 0:01:02]} 51. Rf2 {[%emt 0:01:03]} Qg4+ {[%emt 0:00:35]} 52. Ke1 {[%emt 0:00:25]} f5 {[%emt 0:00:22]} 53. Re2 {[%emt 0:00:38]} Qf4 {[%emt 0:00:51]} 54. b3 {[%emt 0:00:38]} Kg7 {[%emt 0:00:38]} 55. Rh2 {[%emt 0:01:03]} Qb4+ {[%emt 0:00:35]} 56. Kf2 {[%emt 0:00:25]} Qxb3 {[%emt 0:00:31]} 57. Kg1 {[%emt 0:00:30]} Kf6 {[%emt 0:00:27]} 58. Rf2 {[%emt 0:00:23]} f4 {[%emt 0:00:26]} 59. Kh2 {[%emt 0:00:28]} Kf5 {[%emt 0:00:24]} 60. Kg1 {[%emt 0:00:27]} Qb6 {[%emt 0:00:33]} 61. Ng3+ {[%emt 0:00:24]} Kg4 {[%emt 0:00:28]} 62. Nh1 {[%emt 0:00:28]} Qe3 {[%emt 0:00:45]} 63. Kh2 {[%emt 0:00:27]} Qg3+ {[%emt 0:00:24]} 0-1

[Event "RUS Cup Final Men 2019"]
[Site "Khanty-Mansiysk"]
[Date "2019.12.08"]
[Round "2.3"]
[White "Pogosyan, Stefan"]
[Black "Volkov, Sergey"]
[Result "0-1"]
[ECO "D31"]
[WhiteElo "2459"]
[BlackElo "2578"]
[Annotator "ChessBase"]
[PlyCount "70"]
[EventDate "2019.12.05"]
[EventType "k.o."]
[EventCountry "RUS"]
[SourceTitle "playchess.com"]
[Source "ChessBase"]
[SourceQuality "1"]
[TimeControl "5400+30"]

1. d4 {[%emt 1:15:11]} d5 2. c4 e6 {[%emt 1:15:34]} 3. Nc3 {[%emt 0:00:45]} c6 {[%emt 0:00:21]} 4. e3 {[%emt 0:00:23]} Bd6 {[%emt 0:00:23]} 5. Bd3 {[%emt 0:00:30]} f5 {[%emt 0:00:23]} 6. Nge2 {[%emt 0:00:33]} Nf6 {[%emt 0:00:23]} 7. f3 {[%emt 0:00:46]} O-O {[%emt 0:00:30]} 8. Qc2 {[%emt 0:00:35]} Na6 {[%emt 0:00:27]} 9. a3 {[%emt 0:00:23]} dxc4 {[%emt 0:00:22]} 10. Bxc4 {[%emt 0:00:21]} b5 {[%emt 0:00:21]} 11. Bb3 {[%emt 0:01:07]} b4 {[%emt 0:00:23]} 12. Na4 {[%emt 0:00:23]} bxa3 {[%emt 0:01:20]} 13. bxa3 {[%emt 0:00:21]} Qc7 {[%emt 0:01:14]} 14. Qxf5 {[%emt 0:02:56]} Kh8 {[%emt 0:00:56]} 15. Qc2 {[%emt 0:00:40]} e5 {[%emt 0:00:25]} 16. Bb2 {[%emt 0:05:31]} Rb8 {[%emt 0:00:58]} 17. Bc4 {[%emt 0:01:31]} exd4 {[%emt 0:01:51]} 18. Nxd4 {[%emt 0:01:59]} Re8 {[%emt 0:00:51]} 19. e4 {[%emt 0:01:57]} Nc5 {[%emt 0:00:48]} 20. Nxc5 {[%emt 0:00:48]} Bxc5 {[%emt 0:00:22]} 21. Nb3 {[%emt 0:00:22]} Bb6 {[%emt 0:00:59]} 22. a4 {[%emt 0:01:17]} a5 {[%emt 0:00:51]} 23. Qc3 {[%emt 0:02:05]} Nd5 {[%emt 0:01:41]} 24. Bxd5 {[%emt 0:01:13]} cxd5 {[%emt 0:00:21]} 25. Rc1 {[%emt 0:00:40]} Qxc3+ {[%emt 0:02:17]} 26. Bxc3 {[%emt 0:00:21]} dxe4 {[%emt 0:00:21]} 27. Bd4 {[%emt 0:00:37]} exf3+ {[%emt 0:01:02]} 28. Kf2 {[%emt 0:00:21]} fxg2 {[%emt 0:00:22]} 29. Rhe1 {[%emt 0:00:40]} Bxd4+ 30. Nxd4 Rb2+ {[%emt 0:03:12]} 31. Kg3 {[%emt 0:01:01]} Rf8 {[%emt 0:00:39]} 32. Rc2 {[%emt 0:00:32]} Rxc2 {[%emt 0:01:10]} 33. Nxc2 {[%emt 0:00:21]} Bb7 {[%emt 0:00:21]} 34. Ne3 {[%emt 0:00:21]} Rf3+ {[%emt 0:00:29]} 35. Kh4 {[%emt 0:00:20]} g5+ {[%emt 0:00:22]} 0-1

[Event "RUS Cup Final Men 2019"]
[Site "Khanty-Mansiysk"]
[Date "2019.12.08"]
[Round "2.4"]
[White "Volkov, Sergey"]
[Black "Pogosyan, Stefan"]
[Result "0-1"]
[ECO "E46"]
[WhiteElo "2578"]
[BlackElo "2459"]
[Annotator "ChessBase"]
[PlyCount "136"]
[EventDate "2019.12.05"]
[EventType "k.o."]
[EventCountry "RUS"]
[SourceTitle "playchess.com"]
[Source "ChessBase"]
[SourceQuality "1"]
[TimeControl "5400+30"]

1. d4 {[%emt 1:25:31]} Nf6 2. c4 e6 {[%emt 1:27:01]} 3. Nc3 Bb4 4. e3 {[%emt 0:01:32]} O-O {[%emt 0:01:07]} 5. Nge2 {[%emt 0:00:31]} d5 {[%emt 0:00:33]} 6. a3 {[%emt 0:00:33]} Be7 {[%emt 0:00:32]} 7. Nf4 {[%emt 0:00:35]} c6 {[%emt 0:00:35]} 8. b4 {[%emt 0:00:36]} Bd6 {[%emt 0:00:39]} 9. Bb2 {[%emt 0:00:36]} b6 {[%emt 0:00:43]} 10. c5 {[%emt 0:00:37]} Bc7 {[%emt 0:00:32]} 11. Nd3 {[%emt 0:00:36]} Ba6 {[%emt 0:00:36]} 12. Be2 {[%emt 0:00:41]} Nbd7 {[%emt 0:00:32]} 13. O-O {[%emt 0:00:33]} bxc5 {[%emt 0:00:41]} 14. bxc5 {[%emt 0:00:35]} Bxd3 {[%emt 0:00:31]} 15. Bxd3 e5 16. h3 {[%emt 0:01:23]} Rb8 {[%emt 0:01:01]} 17. Rb1 {[%emt 0:00:32]} Qe7 {[%emt 0:00:39]} 18. Qa4 {[%emt 0:00:33]} e4 {[%emt 0:00:50]} 19. Be2 {[%emt 0:00:36]} Qe6 {[%emt 0:00:30]} 20. Qxa7 {[%emt 0:00:37]} Rfc8 {[%emt 0:00:34]} 21. Qa4 {[%emt 0:00:45]} Ra8 {[%emt 0:00:35]} 22. Qc2 {[%emt 0:00:32]} h5 {[%emt 0:00:31]} 23. Bc1 {[%emt 0:00:34]} Ra7 {[%emt 0:00:32]} 24. Rb3 {[%emt 0:00:35]} h4 {[%emt 0:00:36]} 25. Bd2 {[%emt 0:00:34]} Rca8 {[%emt 0:00:36]} 26. a4 {[%emt 0:00:32]} Ba5 {[%emt 0:00:37]} 27. Ra1 {[%emt 0:00:31]} g5 {[%emt 0:00:38]} 28. Qd1 {[%emt 0:00:32]} Ne8 {[%emt 0:00:46]} 29. Rb2 {[%emt 0:00:36]} f5 {[%emt 0:00:31]} 30. Nb1 {[%emt 0:00:32]} Nef6 {[%emt 0:00:32]} 31. Bxa5 {[%emt 0:00:33]} Rxa5 {[%emt 0:00:31]} 32. Nc3 {[%emt 0:00:32]} f4 {[%emt 0:00:35]} 33. Bg4 {[%emt 0:00:31]} Nxg4 {[%emt 0:00:32]} 34. Qxg4 {[%emt 0:00:32]} Qxg4 {[%emt 0:00:31]} 35. hxg4 {[%emt 0:00:31]} fxe3 {[%emt 0:00:38]} 36. fxe3 {[%emt 0:00:31]} Nf6 {[%emt 0:00:31]} 37. Rb6 {[%emt 0:00:36]} R5a6 {[%emt 0:00:31]} 38. Rf1 {[%emt 0:00:36]} Nxg4 {[%emt 0:00:45]} 39. Rf5 {[%emt 0:00:33]} Nxe3 {[%emt 0:00:39]} 40. Rxg5+ {[%emt 0:00:31]} Kf7 {[%emt 0:00:31]} 41. Rb7+ {[%emt 0:00:33]} Kf6 {[%emt 0:00:31]} 42. Rh5 {[%emt 0:00:38]} Nf5 {[%emt 0:00:32]} 43. Rb6 {[%emt 0:00:49]} Kg6 {[%emt 0:00:33]} 44. Nxd5 {[%emt 0:00:46]} Kxh5 {[%emt 0:00:31]} 45. Nc7 {[%emt 0:00:30]} Rxb6 {[%emt 0:00:40]} 46. cxb6 Rxa4 47. d5 {[%emt 0:01:10]} cxd5 {[%emt 0:01:02]} 48. Nxd5 {[%emt 0:00:31]} Nd6 {[%emt 0:00:31]} 49. Kh2 {[%emt 0:00:40]} Ra3 {[%emt 0:00:30]} 50. Nf4+ {[%emt 0:00:32]} Kg5 {[%emt 0:00:31]} 51. Ne6+ {[%emt 0:00:30]} Kg4 {[%emt 0:00:31]} 52. Nc7 {[%emt 0:00:33]} Rb3 {[%emt 0:00:30]} 53. Nd5 {[%emt 0:00:31]} Nc4 {[%emt 0:00:32]} 54. Nf6+ {[%emt 0:00:31]} Kf5 {[%emt 0:00:31]} 55. Nd5 {[%emt 0:00:31]} Nxb6 {[%emt 0:00:31]} 56. Ne7+ {[%emt 0:00:30]} Kg4 {[%emt 0:00:31]} 57. Ng8 {[%emt 0:00:32]} Nd5 {[%emt 0:00:31]} 58. Nh6+ Kg5 59. Nf7+ {[%emt 0:00:59]} Kf6 {[%emt 0:00:58]} 60. Nd6 {[%emt 0:00:27]} Ke5 {[%emt 0:00:27]} 61. Nc4+ {[%emt 0:00:28]} Kd4 {[%emt 0:00:28]} 62. Nd6 {[%emt 0:00:27]} Ne3 {[%emt 0:00:29]} 63. Kh3 {[%emt 0:00:30]} Rb2 {[%emt 0:00:31]} 64. Kxh4 {[%emt 0:00:30]} Rxg2 {[%emt 0:00:28]} 65. Nb5+ {[%emt 0:00:29]} Ke5 {[%emt 0:00:28]} 66. Na7 {[%emt 0:00:28]} Rc2 {[%emt 0:00:29]} 67. Nb5 {[%emt 0:00:28]} Rc5 {[%emt 0:00:27]} 68. Na7 {[%emt 0:00:29]} Kd4 {[%emt 0:00:29]} 0-1

[Event "RUS Cup Final Men 2019"]
[Site "Khanty-Mansiysk"]
[Date "2019.12.11"]
[Round "4.1"]
[White "Sjugirov, Sanan"]
[Black "Sarana, Alexey"]
[Result "1-0"]
[ECO "E10"]
[WhiteElo "2665"]
[BlackElo "2663"]
[Annotator "RC"]
[PlyCount "191"]
[EventDate "2019.12.05"]
[EventType "k.o."]
[EventCountry "RUS"]
[SourceTitle "playchess.com"]
[Source "ChessBase"]
[SourceQuality "1"]
[TimeControl "5400+30"]

1. d4 {[%emt 0:01:41]} Nf6 {[%emt 0:00:00]} 2. c4 {[%emt 0:00:05]} e6 {[%emt 0:00:00]} 3. Nf3 {[%emt 0:00:24]} d5 {[%emt 0:00:00]} 4. g3 {[%emt 0:00:44]} Bb4+ {[%emt 0:00:02]} 5. Bd2 {[%emt 0:00:11]} Be7 {[%emt 0:00:07]} 6. Bg2 {[%emt 0:00:10]} c6 {[%emt 0:00:04]} 7. O-O {[%emt 0:00:28]} O-O {[%emt 0:00:11]} 8. Qb3 {[%emt 0:00:29]} a5 {[%emt 0:00:15]} 9. Rd1 {[%emt 0:02:24]} Nbd7 {[%emt 0:00:14]} 10. Bf4 {[%emt 0:00:30]} Nh5 {[%emt 0:00:17]} 11. Bc1 {[%emt 0:04:31]} f5 {[%emt 0:02:16]} 12. Qc2 {[%emt 0:05:59]} Bd6 {[%emt 0:02:26]} 13. b3 {[%emt 0:03:22]} Qe7 {[%emt 0:00:08]} 14. Bb2 {[%emt 0:07:23]} b6 {[%emt 0:03:44]} 15. e3 {[%emt 0:02:15]} Bb7 {[%emt 0:01:47]} 16. Ne5 {[%emt 0:07:18]} Nhf6 {[%emt 0:03:40]} 17. Nxd7 {[%emt 0:05:33]} Nxd7 {[%emt 0:01:33]} 18. Nc3 {[%emt 0:00:38]} Rac8 {[%emt 0:01:04]} 19. Na4 {[%emt 0:08:25]} Ba6 {[%emt 0:14:40]} 20. Nxb6 {[%emt 0:11:19]} Nxb6 {[%emt 0:00:18]} 21. c5 {[%emt 0:00:06]} Bxc5 {[%emt 0:00:18]} 22. dxc5 {[%emt 0:00:27]} Nd7 {[%emt 0:00:06]} 23. Rac1 {[%emt 0:00:29]} Ra8 {[%emt 0:06:19]} 24. Qd2 {[%emt 0:02:42]} Rfb8 {[%emt 0:02:29]} 25. e4 {[%emt 0:02:16]} fxe4 {[%emt 0:00:31]} 26. Bxe4 {[%emt 0:00:04]} a4 {[%emt 0:00:21]} 27. b4 {[%emt 0:01:27]} Nf6 {[%emt 0:04:21]} 28. Bg2 {[%emt 0:01:04]} e5 {[%emt 0:00:47]} 29. Re1 {[%emt 0:00:29]} e4 {[%emt 0:00:28]} 30. f3 {[%emt 0:00:09]} a3 {[%emt 0:02:12]} 31. Bxa3 {[%emt 0:06:14]} Bf1 {[%emt 0:06:02]} 32. Rxf1 {[%emt 0:04:30]} Rxa3 {[%emt 0:00:11]} 33. fxe4 {[%emt 0:00:07]} dxe4 {[%emt 0:01:56]} 34. Rce1 {[%emt 0:01:57]} Qe5 {[%emt 0:06:34]} 35. Rf4 {[%emt 0:01:10]} Qd5 {[%emt 0:01:50]} 36. Qxd5+ {[%emt 0:03:26]} cxd5 {[%emt 0:00:01]} 37. Rc1 {[%emt 0:00:11]} Ne8 {[%emt 0:01:10]} 38. Rcf1 {[%emt 0:02:11]} Nf6 {[%emt 0:01:34]} 39. Rc1 {[%emt 0:01:41]} Ne8 {[%emt 0:00:01]} 40. Bh3 {[%emt 0:01:26]} Nc7 {[%emt 0:00:11]} 41. Rcf1 {[%emt 0:00:05]} e3 {[%emt 0:04:28]} 42. b5 {[%emt 0:03:26]} e2 {[%emt 0:01:12]} 43. Re1 {[%emt 0:00:01]} g5 {[%emt 0:07:16]} 44. b6 {[%emt 0:01:32]} Na6 {[%emt 0:00:35]} 45. Rf5 {[%emt 0:01:40]} Rxa2 {[%emt 0:02:14]} 46. Rxg5+ {[%emt 0:00:22]} Kh8 {[%emt 0:00:02]} 47. c6 {[%emt 0:03:53]} Rxb6 {[%emt 0:03:05]} 48. Be6 {[%emt 0:00:02]} h6 {[%emt 0:04:09]} 49. Rg8+ {[%emt 0:00:04]} Kh7 {[%emt 0:00:03]} 50. Bxd5 {[%emt 0:00:09]} Rd2 {[%emt 0:00:11]} 51. Rd8 {[%emt 0:00:13]} Kg7 {[%emt 0:00:02]} 52. Kf2 {[%emt 0:03:46]} Nc7 {[%emt 0:04:51]} 53. Rd7+ {[%emt 0:00:05]} Kf6 {[%emt 0:00:04]} 54. Rf7+ {[%emt 0:02:07]} Kg6 {[%emt 0:02:30]} 55. Rxc7 {[%emt 0:00:05]} Rxd5 {[%emt 0:00:03]} 56. Rxe2 {[%emt 0:00:04]} Rc5 {[%emt 0:00:27]} 57. Re6+ {[%emt 0:00:04]} Kf5 {[%emt 0:01:26]} 58. Rxh6 {[%emt 0:00:08]} Rc2+ {[%emt 0:00:44]} 59. Ke3 {[%emt 0:00:09]} Rb3+ {[%emt 0:00:20]} 60. Kd4 {[%emt 0:00:05]} Rbc3 {[%emt 0:01:32]} 61. Rf7+ {[%emt 0:04:43]} Kg5 {[%emt 0:00:01]} 62. Rd6 {[%emt 0:00:07]} Rc4+ {[%emt 0:00:47]} 63. Kd5 {[%emt 0:00:04]} Rc5+ {[%emt 0:00:00]} 64. Ke6 {[%emt 0:00:05]} Rxc6 {[%emt 0:00:00]} 65. Rxc6 {[%emt 0:01:25]} Rxc6+ {[%emt 0:00:00]} 66. Ke5 {[%emt 0:00:26]} Rc4 {[%emt 0:02:44]} 67. h4+ {[%emt 0:01:51]} Kg6 {[%emt 0:00:01]} 68. Rf6+ {[%emt 0:00:09]} Kh5 {[%emt 0:00:03]} 69. Rf4 {[%emt 0:00:41]} Rc3 {[%emt 0:00:33]} 70. Rf5+ {[%emt 0:00:03]} Kh6 {[%emt 0:00:03]} 71. Kf4 {[%emt 0:00:10]} Rc4+ {[%emt 0:00:05]} 72. Kf3 {[%emt 0:00:03]} Kg6 {[%emt 0:00:03]} 73. Rf4 {[%emt 0:00:14]} Rc1 {[%emt 0:00:04]} 74. Kg4 {[%emt 0:00:07]} Rc5 {[%emt 0:00:04]} 75. Re4 {[%emt 0:00:16]} Rc1 {[%emt 0:00:03]} 76. h5+ {[%emt 0:00:13]} Kf7 {[%emt 0:00:11]} 77. Rf4+ {[%emt 0:00:13]} Kg7 {[%emt 0:00:01]} 78. Kg5 {[%emt 0:00:15]} Rc5+ {[%emt 0:00:05]} 79. Rf5 {[%emt 0:00:03]} Rc6 {[%emt 0:00:03]} 80. g4 {[%emt 0:00:04]} Ra6 {[%emt 0:00:03]} 81. Rc5 {[%emt 0:00:08]} Ra7 {[%emt 0:00:03]} 82. h6+ {[%emt 0:00:11]} Kh7 {[%emt 0:00:03]} 83. Kh5 {[%emt 0:00:05]} Ra1 {[%emt 0:00:04]} 84. Rc7+ {[%emt 0:00:04]} Kh8 {[%emt 0:00:13]} 85. g5 {[%emt 0:00:11]} Ra8 {[%emt 0:00:03]} 86. Rf7 {[%emt 0:00:27]} Kg8 {[%emt 0:00:04]} 87. Rf5 {[%emt 0:00:05]} Ra1 {[%emt 0:00:07]} 88. Kg6 {[%emt 0:00:28]} Ra8 {[%emt 0:00:08]} 89. Rf6 {[%emt 0:00:18]} Rb8 {[%emt 0:00:17]} 90. Re6 {[%emt 0:00:38]} Rf8 {[%emt 0:00:10]} 91. Kh5 {[%emt 0:00:22]} Ra8 {[%emt 0:00:26]} 92. Re5 {[%emt 0:00:32]} Ra1 {[%emt 0:00:06]} 93. Rc5 {[%emt 0:00:47]} Ra2 {[%emt 0:00:07]} 94. Rc8+ {[%emt 0:00:21]} Kf7 {[%emt 0:00:01]} 95. g6+ {[%emt 0:00:39]} Kf6 {[%emt 0:00:02]} 96. Rf8+ {[%emt 0:00:05]} 1-0